[Event "Saint Louis Super Swiss 2023"]
[Site "Saint Louis"]
[Date "2023.03.17"]
[Round "5.2"]
[White "Antipov, Mikhail Al."]
[Black "Yoo, Christopher Woojin"]
[Result "0-1"]
[ECO "B40"]
[WhiteElo "2581"]
[BlackElo "2591"]
[Annotator "TA"]
[PlyCount "152"]
[EventDate "2023.03.12"]
[EventType "swiss"]
[EventCountry "USA"]
[TimeControl "5400+30"]

{[%evp 9,152,20,12,9,9,10,21,-12,0,-19,26,26,95,94,74,81,82,73,87,76,88,49,85,20,7,-244,-230,-204,-118,-129,-41,-101,-40,-31,-25,-56,-66,-192,-183,-183,-176,-182,-168,-156,-183,-172,-175,-181,-179,-157,-145,-143,-48,-128,-134,-144,-153,-172,-29,-82,-74,-187,-183,-277,-43,-260,-269,-279,-279,-279,-271,-225,-189,-175,-110,-135,-139,-121,-117,-117,-117,-128,-115,-130,-117,-129,-58,-66,-59,-62,-56,-64,-54,-308,-269,-283,-294,-151,-66,-3506,-3514,-3477,-3481,-3470,-3470,-3320,-3320,-3158,-3118,-2855,-2844,-2685,-2473,-8325,-2439,-2439,-2425,-6604,-8,-8,0,-2410,-64,-87,-8,-8,0,-463,0,-5666,-5333,-4557,-4015,-1203,-55,-55,-55,-55,-87,-12794,-11774,-5881,-5622,-4656,-4622]} 1. e4 {[%emt 0:04:35]} c5 {[%emt 0:00:03]} 2. Nf3 {[%emt 0:00:04]} e6 {[%emt 0:00:05]} 3. b3 {[%emt 0:00:27]} a6 {[%emt 0:00:04]} 4. Bb2 {[%emt 0:00:05]} d5 {[%emt 0:00:05]} 5. exd5 {[%emt 0:00:10]} exd5 {[%emt 0:00:04]} 6. Qe2+ {[%emt 0:00:21] B40: Sicilian: 2...e6, Unusual lines.} Be6 {[%emt 0:00:04]} 7. g3 {[%emt 0:00:18]} Nc6 {[%emt 0:00:05]} 8. d3 {[%emt 0:00:10] [#] The position is equal.} Nge7 $146 {[%emt 0:02:52]} ({Predecessor:} 8... Nf6 9. Bg2 Be7 10. O-O Qd7 11. Ng5 Nd8 12. Nxe6 Nxe6 13. Re1 Rc8 14. Bh3 Rc6 {1-0 Bielawska,M-Wojciechowska,B POL-chT2 North U19 2000 (6)}) 9. Nbd2 {[%emt 0:33:57]} Nf5 {[%emt 0:00:51]} (9... Nb4 $5 {[%cal Rb4c2]} 10. Kd1 h6 $11) 10. Bh3 {[%emt 0:01:13]} Be7 {[%emt 0:06:26]} (10... Qe7 $11 {remains equal.}) 11. Bxf5 $16 {[%emt 0:01:55][%mdl 64] Remove Defender} Bxf5 {[%emt 0:00:07]} 12. Bxg7 {[%emt 0:00:04]} Rg8 {[%emt 0:00:09]} 13. Bf6 {[%emt 0:01:07]} Be6 {[%emt 0:06:10]} 14. Bxe7 {[%emt 0:00:14]} Qxe7 {[%emt 0:00:07]} 15. c3 {[%emt 0:04:28]} Qf6 {[%emt 0:20:18][%cal Oe8c8]} 16. Qe3 {[%emt 0:05:34]} (16. O-O $16) 16... O-O-O $11 {[%emt 0:01:30]} 17. Qxc5 $2 {[%emt 0:14:21][%mdl 8192]} (17. O-O $1 $11 {and White is okay.}) 17... Bg4 $19 {[%emt 0:01:50]} 18. Nd4 {[%emt 0:00:12]} Rde8+ {[%emt 0:02:56]} (18... Rge8+ $19 19. Kf1 Bh3+ 20. Kg1 Re7) 19. Kf1 $17 {[%emt 0:00:03]} Bh3+ {[%emt 0:00:07]} 20. Kg1 {[%emt 0:00:02]} Qe7 {[%emt 0:00:46]} (20... Kb8 $17 {aiming for ...Nxd4.} 21. Nxc6+ (21. Qxd5 Nxd4 22. Qxd4 Qc6 $17) 21... Qxc6 22. Qxc6 bxc6) 21. Qxe7 $15 {[%emt 0:01:30]} (21. Qxd5 $2 Qe1+ $19) 21... Rxe7 $40 {[%emt 0:03:10][%mdl 128] Black mounts an attack.} 22. N4f3 {[%emt 0:04:16]} Ne5 $1 {[%emt 0:02:52]} 23. Ne1 {[%emt 0:06:34]} (23. Nd4 $1 $15) 23... Rge8 $19 {[%emt 0:01:59] White must now prevent ...Ng4.} 24. Nf1 {[%emt 0:02:40]} Ng4 {[%emt 0:03:44] Repels Ne3} 25. Ne3 {[%emt 0:03:56]} Nxe3 {[%emt 0:00:17]} 26. fxe3 {[%emt 0:00:04]} Rxe3 {[%emt 0:00:05]} 27. Ng2 {[%emt 0:02:17]} Rf3 {[%emt 0:02:51]} 28. Nf4 {[%emt 0:01:57] [#] Wards off Re2} Rxf4 {[%emt 0:00:10][%mdl 512]} 29. gxf4 {[%emt 0:00:03][%mdl 4096] Endgame Kf2 would be deadly. KRR-KRB} Re2 {[%emt 0:00:04]} 30. Rd1 {[%emt 0:00:04]} b5 {[%emt 0:11:19]} (30... Rxa2 $17 31. f5 f6) 31. d4 {[%emt 0:01:36]} (31. a4 $15) 31... Rxa2 $17 {[%emt 0:00:18] Black is much more active.} 32. b4 {[%emt 0:02:00]} Kd7 {[%emt 0:00:43][%mdl 1024] Black has strong compensation.} 33. Re1 {[%emt 0:00:48]} Kd6 {[%emt 0:02:52]} (33... Rg2+ $19 34. Kf1 Rc2+ 35. Kg1 Bg2) 34. f5 {[%emt 0:01:09]} Bg2 {[%emt 0:03:28][%cal Og2e4]} (34... Bxf5 35. h4 $14) 35. f6 {[%emt 0:03:56]} Be4 $19 {[%emt 0:00:21]} 36. h4 {[%emt 0:00:46]} (36. Rc1 $142) 36... Rg2+ $1 {[%emt 0:00:18]} ({Stronger than} 36... Bxh1 37. Kxh1 Ra3 38. Re3 $17) 37. Kf1 {[%emt 0:00:05][%cal Oe1e4]} Rc2 $1 {[%emt 0:00:05][%csl LRc3,LRh1][%mdl 64] Discovered Attack} 38. Kg1 {[%emt 0:03:08]} Bxh1 {[%emt 0:00:14]} 39. Kxh1 {[%emt 0:00:03]} Rxc3 {[%emt 0:00:04] KR-KR} 40. Kg2 {[%emt 0:00:23]} h5 {[%emt 0:03:09]} 41. Ra1 {[%emt 0:01:45]} Rc6 {[%emt 0:00:10]} (41... Kd7 $19 {Hoping for ...Rd3.} 42. Rxa6 Rc4 43. Ra7+ Ke6 44. Re7+ Kxf6) 42. Kf3 $17 {[%emt 0:00:08]} Ke6 {[%emt 0:00:42]} 43. Re1+ {[%emt 0:00:04]} Kxf6 {[%emt 0:00:03]} 44. Re5 {[%emt 0:00:03]} Rc4 {[%emt 0:00:21][%csl LRb4,LRd4]} 45. Rxd5 {[%emt 0:00:03]} Rxb4 {[%emt 0:00:03] And now ...a5 would win.} 46. Ke4 {[%emt 0:00:21]} a5 $1 {[%emt 0:00:49]} 47. Rxh5 {[%emt 0:00:41]} a4 {[%emt 0:02:37]} (47... Kg6 $17 48. Rg5+ Kh6) 48. Rh6+ $15 {[%emt 0:00:04]} Kg7 {[%emt 0:00:05]} 49. Ra6 {[%emt 0:00:03]} Rb3 {[%emt 0:00:02]} 50. d5 $1 {[%emt 0:03:36]} a3 {[%emt 0:00:08]} 51. h5 $2 {[%emt 0:01:25][%mdl 8192]} ({White must play} 51. d6 $1 $15 Kf6 52. Kd4) 51... Rb4+ $19 {[%emt 0:00:48]} 52. Kd3 {[%emt 0:00:46]} Rh4 {[%emt 0:00:05]} 53. d6 {[%emt 0:00:27] Strongly threatening d7.} Rxh5 {[%emt 0:02:11]} (53... Kf6 $17 54. h6 b4) 54. Kd4 $2 {[%emt 0:00:51][%mdl 8192]} (54. Ke4 $15) 54... Kf6 {[%emt 0:00:49]} 55. d7+ {[%emt 0:00:35]} Ke7 {[%emt 0:00:02]} 56. Rxa3 {[%emt 0:00:03]} Kxd7 {[%emt 0:00:07]} 57. Ra6 {[%emt 0:00:04]} Ke7 {[%emt 0:00:45]} ({Weaker is} 57... f5 58. Rb6 $17) 58. Rb6 {[%emt 0:00:18]} f6 {[%emt 0:00:06]} 59. Ke4 {[%emt 0:00:06]} Kf7 {[%emt 0:00:17]} 60. Rb8 {[%emt 0:00:04]} Re5+ {[%emt 0:00:15]} 61. Kf4 {[%emt 0:00:18]} Rc5 {[%emt 0:00:44]} (61... Ke6 $142 62. Rb6+ Ke7) 62. Ke4 {[%emt 0:00:13]} Rh5 {[%emt 0:00:37]} 63. Kf4 {[%emt 0:00:04]} Ke6 $2 {[%emt 0:00:48]} (63... Re5 $19 {...Ke6 is the strong threat.} 64. Ra8 Ke7) 64. Rb6+ $11 {[%emt 0:00:20]} Ke7 $2 {[%emt 0:00:03][%mdl 8192]} (64... Kd7 $11) 65. Ke4 $1 $19 {[%emt 0:01:05]} Rc5 $2 {[%emt 0:00:46]} (65... Rg5 $19 66. Rb7+ Ke6 67. Rb6+ Kf7 68. Rb7+ Kg6) 66. Rb7+ $15 {[%emt 0:01:01]} Ke6 {[%emt 0:00:06]} (66... Ke8 $17) 67. Rb6+ $11 {[%emt 0:00:02]} Kf7 $2 {[%emt 0:01:01][%mdl 8192]} (67... Kd7 $11 68. Rxf6 Kc7) 68. Rb8 $1 $19 {[%emt 0:00:03]} Re5+ {[%emt 0:00:16]} (68... Kg7 $142 69. Ke3 Re5+ 70. Kd4 Kg6) 69. Kf4 $1 {[%emt 0:00:05]} Ke6 {[%emt 0:01:20]} 70. Rb6+ {[%emt 0:00:11] [#]} Ke7 $1 {[%emt 0:00:02]} 71. Kg4 {[%emt 0:00:45] Dodges Rh5} Kd7 $2 {[%emt 0:00:23]} ({Black should try} 71... f5+ $19 72. Kf4 Rd5) 72. Kf4 $1 $15 {[%emt 0:02:55]} Kc7 {[%emt 0:01:01]} ({Avoid the trap} 72... Ke7 $2 73. Ra6 $19) 73. Rxf6 {[%emt 0:00:03]} Re1 {[%emt 0:00:10] ( -> ...Rf1+)} 74. Kg3 $2 {[%emt 0:00:42][%mdl 8192]} (74. Ra6 $17) 74... Rd1 $19 {[%emt 0:00:11] Black is clearly winning.} 75. Kf2 {[%emt 0:01:32] [#]} Rd6 $1 {[%emt 0:00:05]} 76. Rf8 {[%emt 0:00:38]} Re6 {[%emt 0:00:15] Weighted Error Value: White=0.40/Black=0.19 (very precise)} 0-1

[Event "Saint Louis Super Swiss 2023"]
[Site "Saint Louis"]
[Date "2023.03.16"]
[Round "5.3"]
[White "Swiercz, Dariusz"]
[Black "Daggupati, Balaji"]
[Result "1-0"]
[ECO "B30"]
[WhiteElo "2646"]
[BlackElo "2513"]
[Annotator "TA"]
[PlyCount "73"]
[EventDate "2023.03.12"]
[EventType "swiss"]
[EventCountry "USA"]
[TimeControl "5400+30"]

{[%evp 9,73,12,42,43,60,2,8,7,3,0,0,-13,0,-12,9,-17,-9,-10,53,45,29,46,45,41,71,71,165,65,58,82,289,353,465,452,417,303,475,492,482,462,788,782,789,788,756,741,678,523,528,547,535,534,545,534,496,506,614,606,623,616,590,582,1086,1096,1045,1037]} 1. e4 {[%emt 0:00:56]} c5 {[%emt 0:00:07]} 2. Nf3 {[%emt 0:00:07]} Nc6 {[%emt 0:00:05]} 3. Bb5 {[%emt 0:00:27]} e6 {[%emt 0:00:06]} 4. O-O {[%emt 0:01:52]} Nge7 {[%emt 0:00:06]} 5. Re1 {[%emt 0:00:07]} b6 {[%emt 0:01:51]} 6. c3 {[%emt 0:23:19] B30: Sicilian: 2...Nc6 3 Bb5, lines without ...g6.} a6 {[%emt 0:00:31]} 7. Bf1 {[%emt 0:00:04]} (7. Ba4 $1 $14) 7... d5 $1 $11 {[%emt 0:00:14]} 8. e5 $5 {[%emt 0:06:21][%mdl 4] The position is equal. An interesting side line.} d4 {[%emt 0:09:13]} 9. d3 {[%emt 0:00:10]} Bb7 {[%emt 0:01:56]} 10. Nbd2 {[%emt 0:17:48]} Ng6 {[%emt 0:04:53]} 11. g3 {[%emt 0:00:34]} Qd5 {[%emt 0:07:26][%cal Rc6e5]} 12. c4 {[%emt 0:06:43]} (12. Ne4 $5 {[%cal Re4d6]}) 12... Qd7 {[%emt 0:00:17] [#]} 13. Qe2 $146 {[%emt 0:09:55]} ({Predecessor:} 13. Bg2 O-O-O 14. a3 f6 15. exf6 gxf6 16. Ne4 Be7 17. Bh3 f5 18. Neg5 Bxg5 19. Bxg5 {0-1 Markantonaki,H (2174)-Gajcin,M (2198) EU-chT (Women) 23rd 2021 (9.4)}) 13... O-O-O {[%emt 0:08:55]} (13... h5 $11) 14. h4 {[%emt 0:00:45][%cal Bh2h4,Bh4h5][%mdl 32]} Be7 {[%emt 0:05:18]} 15. h5 {[%emt 0:07:29]} Nf8 {[%emt 0:00:05]} 16. Ne4 {[%emt 0:00:24]} h6 {[%emt 0:05:02]} 17. Bg2 {[%emt 0:09:22] White is more active.} g6 {[%emt 0:02:08] [#]} (17... g5 $16) 18. a3 {[%emt 0:02:41]} (18. b4 $1 $18 {[%cal Rb4c5]}) 18... gxh5 $14 {[%emt 0:02:53]} 19. b4 $1 {[%emt 0:00:04]} cxb4 $2 {[%emt 0:13:40] This move loses the game for Black.} (19... Ng6 $16 {is a better defense.}) 20. axb4 $18 {[%emt 0:00:01]} Nxb4 {[%emt 0:00:07] [#]} 21. Ba3 $1 {[%emt 0:00:49]} a5 {[%emt 0:04:00]} 22. Reb1 {[%emt 0:01:48]} (22. Bb2 Rg8 $14) 22... Qc7 {[%emt 0:02:34] [#]} (22... Qc6 $142 23. Nh4 Bxh4) 23. Nd6+ $1 {[%emt 0:01:53][%mdl 512] White is clearly winning.} Bxd6 {[%emt 0:02:05]} 24. exd6 {[%emt 0:00:05]} Qb8 {[%emt 0:04:24]} (24... Qxd6 25. Ne5 Bxg2 26. Bxb4 $18) (24... Rxd6 $142 25. Bxb4 axb4) 25. Bxb4 {[%emt 0:00:39]} axb4 {[%emt 0:00:06]} 26. Ne5 {[%emt 0:02:04]} Bxg2 {[%emt 0:02:27]} 27. Kxg2 {[%emt 0:00:04]} ({Weaker is} 27. Nxf7 Bb7 $18) 27... Qb7+ {[%emt 0:01:35]} 28. Qe4 {[%emt 0:02:05]} Qxe4+ {[%emt 0:01:11]} 29. dxe4 {[%emt 0:00:01] aiming for Ra8+.} Nd7 {[%emt 0:00:33]} 30. Nxf7 {[%emt 0:00:19]} Kb7 {[%emt 0:00:05] Repels Ra7+} 31. Nxh8 {[%emt 0:01:18]} ({Stronger than} 31. Rxb4 Ra8 $14) 31... Rxh8 {[%emt 0:00:06][%mdl 4096] Endgame KRR-KRN} 32. f4 {[%emt 0:01:08]} ({Less strong is} 32. Rxb4 Kc6 33. Rb5 Kxd6 $18) 32... Nc5 {[%emt 0:04:12]} 33. Rxb4 {[%emt 0:00:21]} Nxe4 {[%emt 0:01:02]} 34. Rab1 {[%emt 0:02:48]} Nxd6 {[%emt 0:00:06]} 35. c5 {[%emt 0:00:28]} Nf5 {[%emt 0:00:38]} 36. Rxb6+ {[%emt 0:00:05]} Kc7 {[%emt 0:00:05]} 37. Ra1 {[%emt 0:00:25] Weighted Error Value: White=0.22 (precise) /Black=0.38} 1-0

[Event "Saint Louis Super Swiss 2023"]
[Site "Saint Louis"]
[Date "2023.03.17"]
[Round "5.4"]
[White "Nyzhnyk, Illya"]
[Black "Corrales Jimenez, Fidel"]
[Result "1/2-1/2"]
[ECO "D73"]
[WhiteElo "2654"]
[BlackElo "2489"]
[Annotator "TA"]
[PlyCount "117"]
[EventDate "2023.03.12"]
[EventType "swiss"]
[EventCountry "USA"]
[TimeControl "5400+30"]

{[%evp 14,117,29,10,56,42,43,28,41,33,42,24,77,46,57,65,71,59,58,55,44,50,31,40,43,25,32,49,45,42,45,41,43,46,41,29,32,36,49,0,0,0,0,0,0,0,0,0,32,10,65,68,54,67,72,60,63,66,57,52,68,64,49,24,16,22,19,19,19,17,22,10,39,17,14,34,21,0,0,-17,-8,-24,-32,-8,-18,-11,-11,-11,-39,-62,-62,-62,-65,-66,0,0,0,0,0,0,175,175,174,0,130,130]} 1. d4 {[%emt 0:00:03]} Nf6 {[%emt 0:05:07]} 2. Nf3 {[%emt 0:00:14]} g6 {[%emt 0:00:07]} 3. c4 {[%emt 0:00:11]} Bg7 {[%emt 0:00:04]} 4. g3 {[%emt 0:00:07]} O-O {[%emt 0:00:27]} 5. Bg2 {[%emt 0:00:05]} c6 {[%emt 0:00:29]} 6. Nc3 {[%emt 0:01:00]} d5 {[%emt 0:00:05]} 7. Qb3 {[%emt 0:00:09]} dxc4 $1 {[%emt 0:03:56] 7...dxc4 is better than 7...Qb6.} 8. Qxc4 {[%emt 0:00:06]} b5 {[%emt 0:00:03] D73: Fianchetto Grünfeld: 5 Nf3 .} (8... Bf5 $11) 9. Qb3 {[%emt 0:02:43] has lost popularity (9.Qd3).} a5 {[%emt 0:02:11]} 10. O-O {[%emt 0:00:20]} a4 {[%emt 0:12:09] White has an edge.} 11. Qc2 {[%emt 0:00:27] [#]} Qa5 $146 {[%emt 0:06:05][%cal Oc6c5]} ({Predecessor:} 11... Nd5 12. Nxd5 cxd5 13. Qc5 Ba6 14. Bg5 f6 15. Rac1 e6 16. Bf4 Re8 17. Bc7 Qd7 {0-1 Paulsen,D (2365)-Lueders,G (2215) Berlin-ch 1997 (6)}) 12. Ne4 {[%emt 0:06:09]} Nd5 {[%emt 0:05:00]} (12... Nxe4 $11 13. Qxe4 Qd8) 13. Bd2 {[%emt 0:01:37]} Qa7 {[%emt 0:00:17]} 14. Nc5 {[%emt 0:01:41]} Bg4 {[%emt 0:08:32]} 15. e3 {[%emt 0:04:40]} Nd7 {[%emt 0:02:06]} 16. Rac1 {[%emt 0:00:21]} Rac8 {[%emt 0:01:49]} 17. h3 {[%emt 0:15:27]} Bxf3 {[%emt 0:01:12]} 18. Bxf3 {[%emt 0:00:07]} e5 {[%emt 0:00:08]} 19. dxe5 {[%emt 0:00:21]} Nxe5 {[%emt 0:01:28]} 20. Be2 {[%emt 0:00:03]} Nc4 {[%emt 0:06:25][%mdl 64] [#] Discovered Attack} 21. Bxc4 {[%emt 0:00:06]} Qxc5 {[%emt 0:00:05]} 22. Be2 {[%emt 0:00:12]} Qe7 {[%emt 0:00:06]} 23. Bg4 {[%emt 0:08:07]} Rc7 {[%emt 0:03:26]} 24. Rfd1 {[%emt 0:03:20]} Nb4 {[%emt 0:08:04]} 25. Qb1 {[%emt 0:00:39]} c5 {[%emt 0:02:25]} 26. Be2 {[%emt 0:10:17]} (26. Bxb4 $14 cxb4 27. Rxc7 Qxc7 28. b3) 26... c4 $11 {[%emt 0:01:38]} 27. Bc3 {[%emt 0:00:04]} Qc5 {[%emt 0:01:28]} 28. Bxg7 {[%emt 0:03:03]} Kxg7 {[%emt 0:00:02]} 29. a3 {[%emt 0:00:06]} Nc6 {[%emt 0:02:13]} 30. Qc2 {[%emt 0:01:27]} Qe5 {[%emt 0:05:27]} 31. Bf3 {[%emt 0:00:15]} (31. Qc3 {simplifies} Qxc3 32. bxc3 Rb8 33. Rd6) 31... Na5 {[%emt 0:04:14]} (31... Rd8 $11) 32. Rd5 $14 {[%emt 0:04:17]} Qf6 {[%emt 0:00:01]} 33. Kg2 {[%emt 0:00:06]} ({Weaker is} 33. Rxb5 Nb3 34. Rxb3 axb3 $17) 33... Nb3 {[%emt 0:00:17]} 34. Rcd1 {[%emt 0:00:07]} Nc5 {[%emt 0:06:44]} 35. Rd6 {[%emt 0:01:04]} Ne6 {[%emt 0:01:42]} 36. Bg4 {[%emt 0:03:42]} Re8 {[%emt 0:00:20]} 37. Bxe6 {[%emt 0:01:26]} Rxe6 {[%emt 0:00:04]} 38. Qc3 {[%emt 0:00:04]} Rxd6 {[%emt 0:04:33]} 39. Rxd6 {[%emt 0:00:05][%mdl 64] [#] Pin} Qxc3 {[%emt 0:00:04]} 40. bxc3 $11 {[%emt 0:00:04][%mdl 4096] Endgame KR-KR} b4 {[%emt 0:00:06]} 41. axb4 {[%emt 0:01:21][%cal Ba3b4,Bb4b5][%mdl 32] Hoping for Ra6.} Ra7 {[%emt 0:00:04] Wards off Ra6} 42. Rd2 {[%emt 0:09:47]} (42. b5 $5) 42... a3 {[%emt 0:00:01]} 43. Ra2 {[%emt 0:00:05]} Kf6 {[%emt 0:00:03]} 44. b5 {[%emt 0:01:17]} Ke5 {[%emt 0:06:17] ...Kd6 would be deadly.} 45. Kf3 {[%emt 0:00:05]} Kd6 {[%emt 0:01:16]} 46. b6 {[%emt 0:00:05]} Ra4 {[%emt 0:00:04] Black wants to play ...Kc6.} 47. b7 {[%emt 0:06:25]} Kc7 {[%emt 0:00:01]} 48. Ke4 {[%emt 0:00:04]} Kxb7 {[%emt 0:00:05] next ...Kc6 is good for Black.} 49. Kd5 {[%emt 0:00:02]} Kb6 {[%emt 0:00:04] Strongly threatening ...Kb5.} 50. Ra1 $1 {[%emt 0:00:03]} a2 {[%emt 0:02:34]} 51. e4 {[%emt 0:01:28]} Kb5 $1 {[%emt 0:00:02]} 52. f4 {[%emt 0:01:22]} Ra7 {[%emt 0:00:05] White must now prevent ...Rd7+.} 53. Ke5 $1 {[%emt 0:00:46]} Re7+ {[%emt 0:00:18]} (53... Ra6 $15 54. Kd5 Ra8) 54. Kd6 {[%emt 0:00:08]} Rxe4 {[%emt 0:02:03]} 55. Rxa2 {[%emt 0:00:03]} Re3 {[%emt 0:00:04][%csl LRc3,LRg3]} 56. Rb2+ {[%emt 0:00:04]} Ka5 $2 {[%emt 0:02:21]} (56... Ka4 $11 {and Black has nothing to worry.}) 57. Kc5 $18 {[%emt 0:00:12][%cal Rb2a2]} Ka6 {[%emt 0:00:02]} 58. Kc6 $2 {[%emt 0:00:07]} (58. Kxc4 $18 {aiming for Kd4.} Rxg3 59. Rd2) 58... Re6+ {[%emt 0:00:12]} (58... Ka7 $1 $11) 59. Kd5 {[%emt 0:00:42] Weighted Error Value: White=0.08 (flawless) /Black=0.17 (very precise)} 1/2-1/2

[Event "Saint Louis Super Swiss 2023"]
[Site "Saint Louis"]
[Date "2023.03.16"]
[Round "5.5"]
[White "Akobian, Varuzhan"]
[Black "Boros, Denes"]
[Result "1/2-1/2"]
[ECO "D61"]
[WhiteElo "2591"]
[BlackElo "2406"]
[Annotator "TA"]
[PlyCount "131"]
[EventDate "2023.03.12"]
[EventType "swiss"]
[EventCountry "USA"]
[TimeControl "5400+30"]

{[%evp 17,131,17,14,22,20,7,18,19,21,13,24,0,4,0,0,0,0,0,0,0,0,0,0,3,11,11,13,8,22,16,5,8,12,0,14,7,13,8,12,4,18,16,17,20,28,27,47,35,42,35,77,77,77,77,85,85,85,85,93,93,93,93,93,93,93,93,93,93,93,93,93,93,93,85,85,78,93,74,74,74,74,74,74,0,74,74,74,74,74,74,74,74,74,71,71,71,71,71,71,71,71,71,71,71,71,71,71,71,71,0,0,0,71,0,0,0]} 1. d4 {[%emt 0:00:07]} d5 {[%emt 0:00:09]} 2. c4 {[%emt 0:00:13]} e6 {[%emt 0:00:05]} 3. Nf3 {[%emt 0:00:50]} Nf6 {[%emt 0:00:28]} 4. Nc3 {[%emt 0:03:41]} Be7 {[%emt 0:02:19]} 5. Bg5 {[%emt 0:03:31]} Nbd7 {[%emt 0:01:44]} 6. e3 {[%emt 0:04:02]} h6 {[%emt 0:00:33]} 7. Bh4 {[%emt 0:00:07]} O-O {[%emt 0:00:05]} 8. Qc2 {[%emt 0:07:04]} c5 {[%emt 0:00:31] The main line 8...c5 scores better than 8...c6.} 9. cxd5 {[%emt 0:00:25]} Nxd5 {[%emt 0:00:09]} 10. Bxe7 {[%emt 0:00:09] D61: Queen's Gambit Declined: Classical: 7 Qc2.} Nxe7 {[%emt 0:05:55]} 11. Be2 {[%emt 0:13:33]} cxd4 {[%emt 0:06:39]} 12. Nxd4 {[%emt 0:00:22]} Nf6 {[%emt 0:00:06]} 13. O-O {[%emt 0:09:53]} Bd7 {[%emt 0:02:42]} 14. Bf3 {[%emt 0:01:53] [#]} Qb6 $146 {[%emt 0:06:19]} ({Predecessor:} 14... Rb8 15. Rfd1 Qa5 16. a3 Rfc8 17. b4 Qe5 18. Qd2 Rc7 19. Rac1 Rbc8 20. Na2 b6 21. Rxc7 Rxc7 {0-1 Marzano,C (2233)-Hoffmann,M (2441) EU-Cup 34th Porto Carras 2018 (1.2)}) 15. Na4 {[%emt 0:12:19]} Qb4 {[%emt 0:12:27]} 16. Qc5 {[%emt 0:01:25]} Qxa4 {[%emt 0:00:21]} 17. Qxe7 {[%emt 0:00:13]} Rfe8 {[%emt 0:04:58]} 18. Qd6 {[%emt 0:01:14]} e5 {[%emt 0:04:27]} 19. Nb3 {[%emt 0:01:09]} Bb5 {[%emt 0:06:14]} 20. Rfd1 {[%emt 0:09:34]} e4 {[%emt 0:03:41]} 21. Rd4 {[%emt 0:04:00]} Qa6 {[%emt 0:00:30]} 22. Qxa6 {[%emt 0:02:19]} Bxa6 {[%emt 0:00:10]} 23. Bd1 {[%emt 0:00:18]} Rac8 {[%emt 0:00:46] Prevents Nc5} 24. h3 {[%emt 0:05:12]} Kf8 {[%emt 0:04:06]} 25. Rd2 {[%emt 0:08:06]} Rc7 {[%emt 0:01:51]} 26. Bc2 {[%emt 0:01:49]} Nd7 {[%emt 0:03:48][%cal Bf6d7,Bd7e5,Be5d3][%mdl 32]} 27. Nd4 {[%emt 0:01:51]} Ne5 {[%emt 0:00:55]} 28. b3 {[%emt 0:02:48] Wards off Nc4} Bd3 {[%emt 0:06:35]} 29. Bxd3 {[%emt 0:00:58]} Nxd3 {[%emt 0:00:08]} 30. Nb5 {[%emt 0:01:36]} Rc6 {[%emt 0:03:02]} 31. Nxa7 {[%emt 0:00:33]} Rc5 {[%emt 0:08:01] [#] ...Ra8 would be deadly.} 32. b4 $1 {[%emt 0:00:41]} Rc4 {[%emt 0:04:11]} (32... Nxb4 33. Rb1) 33. Nb5 {[%emt 0:01:48] Hoping for Nd6.} Rxb4 {[%emt 0:02:04]} 34. Nd6 {[%emt 0:01:28]} Rd8 {[%emt 0:00:18]} 35. a3 {[%emt 0:00:20]} Ra4 {[%emt 0:00:32] [#]} 36. Nxe4 {[%emt 0:01:31]} Rxe4 {[%emt 0:01:38]} 37. Rad1 {[%emt 0:00:03]} b5 {[%emt 0:00:28]} 38. Rxd3 {[%emt 0:00:24]} Rxd3 {[%emt 0:00:03]} 39. Rxd3 $16 {[%emt 0:00:02][%mdl 4096] Endgame KR-KR} b4 {[%emt 0:00:05]} 40. axb4 {[%emt 0:02:10]} Rxb4 {[%emt 0:00:04]} 41. g4 {[%emt 0:00:39][%cal Bg2g4,Bg4g5][%mdl 32]} h5 {[%emt 0:02:24]} 42. g5 {[%emt 0:00:34]} Rb5 {[%emt 0:00:43]} 43. h4 {[%emt 0:00:12]} Rb2 {[%emt 0:01:00]} 44. Kg2 {[%emt 0:00:23]} Ke7 {[%emt 0:00:04]} 45. Kg3 {[%emt 0:00:06]} Ra2 {[%emt 0:00:23]} 46. Rb3 {[%emt 0:00:09]} g6 {[%emt 0:00:20]} 47. e4 {[%emt 0:00:52]} Ke6 {[%emt 0:00:20]} 48. Rb6+ {[%emt 0:00:19]} Ke7 {[%emt 0:00:03]} 49. Rb7+ {[%emt 0:00:14]} Ke6 {[%emt 0:00:04]} 50. Rb6+ {[%emt 0:01:07]} Ke7 {[%emt 0:00:22]} 51. f3 {[%emt 0:00:04]} Rc2 {[%emt 0:00:32]} 52. Rb8 {[%emt 0:01:20]} Ra2 {[%emt 0:00:53]} 53. Kf4 $1 {[%emt 0:00:12]} Ra3 {[%emt 0:00:51]} 54. Rb1 {[%emt 0:00:29]} Ke6 {[%emt 0:00:15]} 55. Re1 {[%emt 0:00:06]} Ra2 {[%emt 0:00:23]} 56. Kg3 {[%emt 0:00:57]} Rb2 {[%emt 0:00:53]} 57. Re3 {[%emt 0:00:09]} Rb1 {[%emt 0:00:17]} 58. Ra3 {[%emt 0:00:39]} Ke7 {[%emt 0:00:38]} 59. Kf4 {[%emt 0:01:04]} Ke6 {[%emt 0:01:32]} 60. Ra6+ {[%emt 0:00:27]} Ke7 {[%emt 0:00:01]} 61. Ke5 {[%emt 0:00:35]} Rb5+ {[%emt 0:00:02] [#]} 62. Kd4 $1 {[%emt 0:00:33]} Rb4+ {[%emt 0:00:48]} 63. Ke5 {[%emt 0:00:09]} Rb5+ $1 {[%emt 0:00:04]} 64. Kd4 {[%emt 0:00:01]} Rb4+ $1 {[%emt 0:00:06] [#]} 65. Kc5 {[%emt 0:01:20]} ({White should play} 65. Ke3 $1 $16) 65... Rb2 $11 {[%emt 0:01:33]} 66. Kd4 {[%emt 0:00:29] Weighted Error Value: White=0.05 (flawless) /Black=0.03 (flawless)} 1/2-1/2